{"text_format":"3","workbook":"xlsx","n_sheets":4,"sheets":["Painel","Ativos","Passivos","cálculos"],"not_rendered":{"charts":4,"defined_names":4},"read":"whole","date_system":"1900"}

{"sheet":"Painel","index":0,"n_rows":16,"n_cols":8,"rows_kept":16}
[]
[null,"PAINEL",{"$nulls":4},"RESUMO DO PATRIMÔNIO LÍQUIDO"," "]
{"$rows_empty":8}
[null,{"$f":"PatrimônioLíquido","v":{"v":159600,"d":"R$ 159,600"}},null,{"$f":"TotaldeAtivos","v":{"v":380800,"d":"R$ 380,800"}},null,null,{"$f":"TotaldePassivos","v":{"v":221200,"d":"R$ 221,200"}}]
[null,"PATRIMÔNIO LÍQUIDO",null,"TOTAL DE ATIVOS",null,null,"TOTAL DE PASSIVOS"]
[{"$nulls":3},"DINHEIRO",null,null,"NÃO SEGURADO"]
[{"$nulls":3},"INVESTIMENTOS",null,null,"SEGURADO"]
[{"$nulls":3},"APOSENTADORIA"]
[{"$nulls":3},"PESSOAL"]

{"sheet":"Ativos","index":1,"n_rows":24,"n_cols":10,"rows_kept":24,"merged":[[11,1,12,1],[13,1,14,1],[14,2,14,4],[14,6,14,8],[25,2,25,4],[25,6,25,8]]}
[]
[null,"ATIVOS",{"$nulls":5},"RESUMO DO PATRIMÔNIO LÍQUIDO",null," "]
[]
[null,null," ","DINHEIRO","VALOR",null," ","PESSOAL","VALOR"]
[{"$nulls":3},"DINHEIRO EM CAIXA",{"v":2000,"d":"2,000"},null,null,"RESIDÊNCIA PRINCIPAL",{"v":233000,"d":"233,000"}]
[{"$nulls":3},"CONTAS CORRENTES",{"v":2500,"d":"2,500"},null,null,"SEGUNDA RESIDÊNCIA"]
[{"$nulls":3},"POUPANÇAS",{"v":4000,"d":"4,000"},null,null,"TÍTULOS EM COBRANÇA"]
[{"$nulls":3},"CONTAS DO MERCADO FINANCEIRO",{"v":3300,"d":"3,300"},null,null,"AUTOMÓVEIS",{"v":32000,"d":"32,000"}]
[{"$nulls":3},"CONTAS DE FUNDO DO MERCADO FINANCEIRO",{"v":7000,"d":"7,000"},null,null,"DECORAÇÕES",{"v":10000,"d":"10,000"}]
[{"$nulls":3},"CERTIFICADOS DE DEPÓSITO",{"$nulls":3},"PELES e JOIAS"]
[{"$nulls":3},"LETRAS DO TESOURO NACIONAL",{"$nulls":3},"OUTROS ATIVOS",{"v":1500,"d":"1,500"}]
[null,{"$f":"TotaldeAtivos","v":{"v":380800,"d":"R$ 380,800"}},null,"VALOR EM DINHEIRO DO SEGURO DE VIDA",{"v":24500,"d":"24,500"}]
[{"$nulls":3},"SUBTOTAL",{"$f":"SUBTOTAL(109,tblDinheiro[VALOR])","v":{"v":43300,"d":"43,300"}},null,null,"SUBTOTAL",{"$f":"SUBTOTAL(109,tblPessoal[VALOR])","v":{"v":276500,"d":"276,500"}}]
[null,"TOTAL DE ATIVOS"]
[]
[]
[null,null," ","INVESTIMENTOS","VALOR",null," ","APOSENTADORIA","VALOR"]
[{"$nulls":3},"ESTOQUES",{"v":15000,"d":"15,000"},null,null,"PENSÃO"]
[{"$nulls":3},"TÍTULOS",{"$nulls":3},"CONTAS IRA"]
[{"$nulls":3},"INVESTIMENTOS EM FUNDOS MÚTUOS",{"$nulls":3},"CONTAS KEOGH"]
[{"$nulls":3},"INTERESSES SOCIETÁRIOS",{"$nulls":3},"401K",{"v":46000,"d":"46,000"}]
[{"$nulls":3},"OUTROS INVESTIMENTOS",{"$nulls":3},"SET"]
[{"$nulls":7},"ESOP"]
[{"$nulls":3},"SUBTOTAL",{"$f":"SUBTOTAL(109,tblInvestimentos[VALOR])","v":{"v":15000,"d":"15,000"}},null,null,"SUBTOTAL",{"$f":"SUBTOTAL(109,tblAposentadoria[VALOR])","v":{"v":46000,"d":"46,000"}}]

{"sheet":"Passivos","index":2,"n_rows":14,"n_cols":10,"rows_kept":14,"merged":[[11,1,12,1],[13,1,14,1]]}
[]
[null,"PASSIVOS",{"$nulls":5},"RESUMO DO PATRIMÔNIO LÍQUIDO",null," "]
[]
[null,null," ","NÃO SEGURADO","DEVIDO",null," ","SEGURADO","DEVIDO"]
[{"$nulls":3},"CARTÕES DE CRÉDITO",{"v":1200,"d":"1,200"},null,null,"Empréstimos de Automóveis",{"v":14500,"d":"14,500"}]
[{"$nulls":3},"CONTAS DE DESPESAS",{"v":3000,"d":"3,000"},null,null,"Empréstimos de Veículos Rec."]
[{"$nulls":3},"EMPRÉSTIMOS UNIVERSITÁRIOS",{"v":17500,"d":"17,500"},null,null,"Empréstimos de Utensílios"]
[{"$nulls":3},"PENSÃO ALIMENTÍCIA",{"$nulls":3},"Hipoteca Residencial",{"v":144000,"d":"144,000"}]
[{"$nulls":3},"PENSÃO PARA MENORES",{"$nulls":3},"Empréstimos para Casa Própria",{"v":21000,"d":"21,000"}]
[{"$nulls":3},"PASSIVO FISCAL",{"v":8000,"d":"8,000"},null,null,"Outros Empréstimos"]
[{"$nulls":3},"OUTROS",{"v":6000,"d":"6,000"},null,null,"Passivo Fiscal",{"v":4000,"d":"4,000"}]
[null,{"$f":"TotaldePassivos","v":{"v":221200,"d":"R$ 221,200"}},{"$nulls":5},"Outros",{"v":2000,"d":"2,000"}]
[{"$nulls":3},"SUBTOTAL",{"$f":"SUBTOTAL(109,tblNãoSegurado[DEVIDO])","v":{"v":35700,"d":"35,700"}},null,null,"SUBTOTAL",{"$f":"SUBTOTAL(109,tblSegurado[DEVIDO])","v":{"v":185500,"d":"185,500"}}]
[null,"TOTAL DE ATIVOS"]

{"sheet":"cálculos","index":3,"n_rows":23,"n_cols":3,"rows_kept":23,"hidden":true}
[]
[null,"*** Esta planilha deve permanecer oculta ***"]
{"$rows_empty":8}
[null,{"$f":"tblDinheiro[[#Headers],[DINHEIRO]]","v":"DINHEIRO"},{"$f":"SUM(tblDinheiro[VALOR])","v":{"v":43300,"d":"R$ 43,300"}}]
[null,{"$f":"tblInvestimentos[[#Headers],[INVESTIMENTOS]]","v":"INVESTIMENTOS"},{"$f":"SUM(tblInvestimentos[VALOR])","v":{"v":15000,"d":"R$ 15,000"}}]
[null,{"$f":"tblAposentadoria[[#Headers],[APOSENTADORIA]]","v":"APOSENTADORIA"},{"$f":"SUM(tblAposentadoria[VALOR])","v":{"v":46000,"d":"R$ 46,000"}}]
[null,{"$f":"tblPessoal[[#Headers],[PESSOAL]]","v":"PESSOAL"},{"$f":"SUM(tblPessoal[VALOR])","v":{"v":276500,"d":"R$ 276,500"}}]
[null,"Total de Ativos",{"$f":"SUM(tblDinheiro[VALOR],tblInvestimentos[VALOR],tblAposentadoria[VALOR],tblPessoal[VALOR])","v":{"v":380800,"d":"R$ 380,800"}}]
[]
[]
[null,{"$f":"tblNãoSegurado[[#Headers],[NÃO SEGURADO]]","v":"NÃO SEGURADO"},{"$f":"SUM(tblNãoSegurado[DEVIDO])","v":{"v":35700,"d":"R$ 35,700"}}]
[null,{"$f":"tblSegurado[[#Headers],[SEGURADO]]","v":"SEGURADO"},{"$f":"SUM(tblSegurado[DEVIDO])","v":{"v":185500,"d":"R$ 185,500"}}]
[null,"Total de Passivos",{"$f":"SUM(tblNãoSegurado[DEVIDO],tblSegurado[DEVIDO])","v":{"v":221200,"d":"R$ 221,200"}}]
[]
[]
[null,"Patrimônio Líquido",{"$f":"C15-C20","v":{"v":159600,"d":"R$ 159,600"}}]